{"text_format":"1","workbook":"xlsx","n_sheets":3,"sheets":["Instructions","Form","Sheet1"],"not_rendered":{"charts":0,"images":1,"macros":1,"external_links":0,"defined_names":3,"comments":0,"pivot_tables":0},"unopened":[],"bounds":{"document_bytes":16777216,"sheet_cells":100000,"rows_first":2000,"rows_last":500,"rows_between":2000,"halvings":0,"cell_chars":16384,"cell_head_chars":4096},"cells_cut":0,"cells_raw":0,"read":"whole","date_system":"1900"}

{"sheet":"Instructions","index":0,"n_rows":11,"n_cols":1,"rows_kept":11,"cut":false,"hidden":false,"merged":[]}
["Higher technical skills injection fund 2 contract variation form: instructions"]
[]
["Note: This form can only be used to alter the qualifications in one occupational route."]
["You must submit separate forms to request changes to multiple occupational routes."]
[]
["How to complete the form:"]
["1. Use the drop-down menu in the Learning Aim box to select a reference. The corresponding qualification title and standard will be auto-filled."]
["2. Use the text box to explain why you are requesting this variation and how you meet the eligibility criteria."]
["3. Do not modify the sheet, as it contains drop-down menus and formulas."]
["4. Once complete, submit the form as an attachment and email it to:"]
["team.highertechnicaleducation@education.gov.uk"]

{"sheet":"Form","index":1,"n_rows":86,"n_cols":6,"rows_kept":86,"cut":false,"hidden":false,"merged":[]}
[]
[]
[null,null,null,"HTE Skills Injection Fund 2 "]
[null,null,null,"Variation request form"]
[]
[null,"Provider name","Provider contact name","Provider email","Funded occupational route (drop down)","Total predicted learners in route"]
[]
[]
[null,"1) Complete the table with the details of all qualifications within the route you wish to change.\n"]
[null,"2) If you do not have a current Learning Aim reference or qualification title, provide the relevant details in the Other (specify) box."]
[]
[null,"Learning aim reference (drop down)","Qualification title ","Occupational standard","Other (specify)","Predicted learner number"]
[null,null,{"$f":"_xlfn.IFNA(VLOOKUP(B13, Sheet1!A:B, 2, FALSE), \"\")","v":""},{"$f":"_xlfn.IFNA(VLOOKUP(B13, Sheet1!A2:D263, 4, FALSE), \"\")","v":""}]
[null,null,{"$f":"_xlfn.IFNA(VLOOKUP(B14, Sheet1!A:B, 2, FALSE), \"\")","v":""},{"$f":"_xlfn.IFNA(VLOOKUP(B14, Sheet1!A3:D264, 4, FALSE), \"\")","v":""}]
[null,null,{"$f":"_xlfn.IFNA(VLOOKUP(B15, Sheet1!A:B, 2, FALSE), \"\")","v":""},{"$f":"_xlfn.IFNA(VLOOKUP(B15, Sheet1!A4:D265, 4, FALSE), \"\")","v":""}]
[null,null,{"$f":"_xlfn.IFNA(VLOOKUP(B16, Sheet1!A:B, 2, FALSE), \"\")","v":""},{"$f":"_xlfn.IFNA(VLOOKUP(B16, Sheet1!A5:D266, 4, FALSE), \"\")","v":""}]
[null,null,{"$f":"_xlfn.IFNA(VLOOKUP(B17, Sheet1!A:B, 2, FALSE), \"\")","v":""},{"$f":"_xlfn.IFNA(VLOOKUP(B17, Sheet1!A6:D267, 4, FALSE), \"\")","v":""}]
[null,null,{"$f":"_xlfn.IFNA(VLOOKUP(B18, Sheet1!A:B, 2, FALSE), \"\")","v":""},{"$f":"_xlfn.IFNA(VLOOKUP(B18, Sheet1!A7:D268, 4, FALSE), \"\")","v":""}]
[null,null,{"$f":"_xlfn.IFNA(VLOOKUP(B19, Sheet1!A:B, 2, FALSE), \"\")","v":""},{"$f":"_xlfn.IFNA(VLOOKUP(B19, Sheet1!A8:D269, 4, FALSE), \"\")","v":""}]
[null,null,{"$f":"_xlfn.IFNA(VLOOKUP(B20, Sheet1!A:B, 2, FALSE), \"\")","v":""},{"$f":"_xlfn.IFNA(VLOOKUP(B20, Sheet1!A9:D270, 4, FALSE), \"\")","v":""}]
[null,null,{"$f":"_xlfn.IFNA(VLOOKUP(B21, Sheet1!A:B, 2, FALSE), \"\")","v":""},{"$f":"_xlfn.IFNA(VLOOKUP(B21, Sheet1!A10:D271, 4, FALSE), \"\")","v":""}]
[null,null,{"$f":"_xlfn.IFNA(VLOOKUP(B22, Sheet1!A:B, 2, FALSE), \"\")","v":""},{"$f":"_xlfn.IFNA(VLOOKUP(B22, Sheet1!A11:D272, 4, FALSE), \"\")","v":""}]
[null,null,{"$f":"_xlfn.IFNA(VLOOKUP(B23, Sheet1!A:B, 2, FALSE), \"\")","v":""},{"$f":"_xlfn.IFNA(VLOOKUP(B23, Sheet1!A12:D273, 4, FALSE), \"\")","v":""}]
[null,null,{"$f":"_xlfn.IFNA(VLOOKUP(B24, Sheet1!A:B, 2, FALSE), \"\")","v":""},{"$f":"_xlfn.IFNA(VLOOKUP(B24, Sheet1!A13:D274, 4, FALSE), \"\")","v":""}]
[null,null,{"$f":"_xlfn.IFNA(VLOOKUP(B25, Sheet1!A:B, 2, FALSE), \"\")","v":""},{"$f":"_xlfn.IFNA(VLOOKUP(B25, Sheet1!A14:D275, 4, FALSE), \"\")","v":""}]
[null,null,null,null,"TOTAL",{"$f":"SUM(F13:F25)","v":0}]
[null,"3) Provide a clear explanation of how you meet the eligibility criteria for requesting a variation."]
[]
[]
[]
[]
[]
[]
[]
[]
[]
[]
[]
[]
[null,"4) Include the details of the new qualifications, ensuring that the total predicted number of learners within the route remains unchanged."]
[]
[null,"New learning aim reference","New qualification title","Is the new qualification an approved HTQ (Yes/No)?","Occupational standard","Predicted learners"]
[]
[]
[]
[]
[]
[]
[]
[]
[]
[]
[]
[]
[]
[]
[]
[]
[]
[]
[]
[]
[]
[]
[]
[]
[]
[]
[]
[]
[]
[]
[]
[]
[]
[]
[]
[]
[]
[]
[]
[]
[]
[]
[null,null,null,null,"TOTAL",{"$f":"SUM(F43:F84)","v":0}]
[null,null,null,{"$f":"IF(F7<>F85, \"Predicted learner numbers do not match\", \"\")","v":""}]

{"sheet":"Sheet1","index":2,"n_rows":263,"n_cols":4,"rows_kept":263,"cut":false,"hidden":true,"merged":[]}
["Qual ref","Qualification","Route","Aligned occupational standard"]
["HTQDZ0020","FdSc Network Engineering (Systems Administration)","Digital","Network engineer"]
["HTQDZ0001","HND Applied Computing","Digital","Network engineer and"]
["HTQDZ0009","FD Cyber Security","Digital","Cyber security technologist"]
["HTQDZ0006","FD Software Development","Digital","Software developer"]
["HTQDZ0005","Foundation Degree in Computer Science","Digital","Data analyst"]
["HTQDZ0011","NCC Education Level 4 Diploma In Computing","Digital","Software developer"]
["HTQDZ0014","FdSc Business Computing","Digital","Data analyst"]
["HTQDZ0013","FdSc Computing with Networking","Digital","Network engineer"]
["HTQDZ0012","FdSc Software Development","Digital","Software developer"]
["HTQDZ0021","FdSc Cyber Security","Digital","Cyber security technologist"]
["HTQDZ0018","FdSc Networking and Cyber Security","Digital","Cyber security technologist"]
["HTQDZ0017","Certificate of Higher Education (CertHE) Software Development","Digital","Software developer"]
["HTQDZ0022","Pearson BTEC Level 5 Higher National Diploma in Computing for England","Digital","Software tester"]
["HTQDZ0022","Pearson BTEC Level 5 Higher National Diploma in Computing for England","Digital","Cyber security technologist"]
["HTQDZ0022","Pearson BTEC Level 5 Higher National Diploma in Computing for England","Digital","Data analyst"]
["HTQDZ0022","Pearson BTEC Level 5 Higher National Diploma in Computing for England","Digital","Business analyst"]
["HTQDZ0022","Pearson BTEC Level 5 Higher National Diploma in Computing for England","Digital","Network engineer"]
["HTQDZ0022","Pearson BTEC Level 5 Higher National Diploma in Computing for England","Digital","Software developer"]
["HTQDZ0004","Foundation Degree of Science (FdSc) in Computer Science","Digital","Business analyst"]
["HTQDZ0004","Foundation Degree of Science (FdSc) in Computer Science","Digital","Cyber security technologist"]
["HTQDZ0004","Foundation Degree of Science (FdSc) in Computer Science","Digital","Data analyst"]
["HTQDZ0004","Foundation Degree of Science (FdSc) in Computer Science","Digital","Digital accessibility specialist"]
["HTQDZ0004","Foundation Degree of Science (FdSc) in Computer Science","Digital","Network engineer"]
["HTQDZ0004","Foundation Degree of Science (FdSc) in Computer Science","Digital","Software developer"]
["HTQDZ0004","Foundation Degree of Science (FdSc) in Computer Science","Digital","Software tester"]
["HTQDZ0008","Diploma of Higher Education in Software and Development","Digital","Software developer"]
["HTQDZ0008","Diploma of Higher Education in Network Engineering","Digital","Network engineer"]
["HTQDZ0019","Foundation Degree: FD Computing and Digital Technologies","Digital","Software developer"]
["HTQDZ0010","FdSc Software Development","Digital","Software developer"]
["HTQDZ0016","FdSc Computer Networks and Cybersecurity","Digital","Network engineer"]
["HTQCZ2001","Pearson BTEC Level 5 Higher National Diploma in Quantity Surveying for England","Construction and the built environment","Construction quantity surveying technician"]
["HTQCZ2002","Pearson BTEC Level 4 Higher National Certificate Quantity Surveying for England","Construction and the built environment","Construction quantity surveying technician"]
["HTQCZ2003","Pearson BTEC Level 5 Higher National Diploma in Modern Methods of Construction for England","Construction and the built environment","Construction design and build technician"]
["HTQCZ2004","Pearson BTEC Level 4 Higher National Certificate in Modern Methods of Construction for England","Construction and the built environment","Construction design and build technician"]
["HTQCZ2005","Pearson BTEC Level 5 Higher National Diploma in Architectural Technology for England","Construction and the built environment","Construction design and build technician"]
["HTQCZ2006","Pearson BTEC Level 4 Higher National Certificate in Architectural Technology for England","Construction and the built environment","Construction design and build technician"]
["HTQCZ2007","Pearson BTEC Level 5 Higher National Diploma in Construction Management for England","Construction and the built environment","Construction site supervisor"]
["HTQCZ2008","Pearson BTEC Level 4 Higher National Certificate in Construction Management for England","Construction and the built environment","Construction site supervisor"]
["HTQCZ2010","FdSc Sustainable Construction and the Built Environment","Construction and the built environment","Construction design and build technician"]
["HTQCZ2011","HNC Construction and Digital Innovation","Construction and the built environment","Construction quantity surveying technician"]
["HTQCZ2012","NOCN Level 4 Construction Site Supervisor Diploma","Construction and the built environment","Construction site supervisor"]
["HTQCZ2013","CertHE Technical Practice in Site Supervision","Construction and the built environment","Construction site supervisor"]
["HTQCZ2014","CertHE Technical Practice in Construction Quantity Surveying","Construction and the built environment","Construction quantity surveying technician"]
["HTQCZ2016","Construction Design and Build Technician (Foundation Degree)","Construction and the built environment","Construction design and build technician"]
["HTQCZ2017","FdSc Civil Engineering and Construction Management","Construction and the built environment","Construction design and build technician"]
["HTQCZ2018","Construction Site Supervisor (Foundation Degree)","Construction and the built environment","Construction site supervisor"]
["HTQCZ2019","Construction Quantity Surveying Technician (Built Environment Technician)  Foundation Degree","Construction and the built environment","Construction quantity surveying technician"]
["HTQCZ2020","FdSc Construction Management","Construction and the built environment","Construction design and build technician"]
["HTQDZ2025","NCFE Level 4 Diploma: Cyber Security Engineer ","Digital","Cyber security technologist - cyber security engineer"]
["HTQDZ2026","NCFE Level 4 Diploma: Data Analyst ","Digital","Data analyst"]
["HTQDZ2027","Certificate of Higher Education Data Analyst","Digital","Data analyst"]
["HTQDZ2028","Diploma of Higher Education (DipHE) Cyber Security Technologist","Digital","Cyber security technologist - cyber security engineer"]
["HTQDZ2029","Diploma of Higher Education (DipHE) Software Developer","Digital","Software developer"]
["HTQDZ2031","Certificate of Higher Education Software Development","Digital","Software developer"]
["HTQDZ2032","Digital Modular Programme for Data Analysts","Digital","Data analyst"]
["HTQDZ2033","Certificate of Higher Education in Data Science","Digital","Data analyst"]
["HTQDZ2034","Pearson BTEC Level 5 Higher National Diploma in Digital Technologies for England","Digital","Cyber Security Engineer, Cyber Risk Analyst, Cyber Defend & Respond"]
["HTQDZ2034","Pearson BTEC Level 5 Higher National Diploma in Digital Technologies for England","Digital","Network Engineer"]
["HTQDZ2034","Pearson BTEC Level 5 Higher National Diploma in Digital Technologies for England","Digital","Software Developer, Software Tester "]
["HTQDZ2034","Pearson BTEC Level 5 Higher National Diploma in Digital Technologies for England","Digital","Data Analyst"]
["HTQDZ2034","Pearson BTEC Level 5 Higher National Diploma in Digital Technologies for England","Digital","Digital Community Manager"]
["HTQDZ2034","Pearson BTEC Level 5 Higher National Diploma in Digital Technologies for England","Digital","Business Analyst"]
["HTQDZ2034","Pearson BTEC Level 5 Higher National Diploma in Digital Technologies for England","Digital","Software Developer, Software Tester "]
["HTQDZ2035","Foundation Degree Software Engineering","Digital","Software developer  "]
["HTQDZ2036","Level 4 Diploma in Digital Community Management","Digital","Digital accessibility specialist "]
["HTQDZ2037","Certificate of Higher Education: Cyber Security Engineer","Digital","Cyber security technologist "]
["HTQDZ2038","Digital Modular Programme in Software Development","Digital","Software developer "]
["HTQDZ2039","Certification of Higher Education Business Analyst","Digital","Business analyst "]
["HTQDZ2040","FdSc Computing ","Digital","Software developer  "]
["HTQDZ2041","Certificate of Higher Education Cyber Security","Digital","Cyber security technologist  "]
["HTQDZ2044","Foundation Degree Cyber Security","Digital","Cyber security technologist  "]
["HTQHS2002","FdSc Physical Education and Sports Coaching","Health and Science","Sports coach"]
["HTQHS2003","FdSc Healthcare Practice","Health and Science","Assistant practitioner (health) "]
["HTQHS2004","CertHE Sports Coaching (Level 4)","Health and Science","Sports coach - community coach"]
["HTQHS2005 ","FdSc Nursing Associate (Level 5)","Health and Science","Nursing associate (NMC 2018) "]
["HTQHS2006","FD in Nursing Associate Practise (Level 5)","Health and Science","Nursing associate (NMC 2018) "]
["HTQHS2007","FdSc Strength Conditioning and Sports Coaching (Level 5)","Health and Science","Sports coach - high performance coach "]
["HTQHS2008","BTEC Higher National Certificate in Community Coaching for England (Level 4)","Health and Science","Sports coach - community coach "]
["HTQHS2009","FdSc Health Care Practice (Level 5)","Health and Science","Nursing associate (NMC 2018)"]
["HTQHS2010","HND in Healthcare Professions' Support for England (Level 5)","Health and Science","Assistant practitioner (health)"]
["HTQHS2011","FdSc Nursing Associate (Level 5)","Health and Science","Nursing associate (NMC 2018) "]
["HTQHS2012","FdSc Assistant Practitioner Health and Social Care","Health and Science","Assistant practitioner (health) "]
["HTQHS2013","FdSc Assistant Practitioner (Level 5)","Health and Science","Assistant practitioner (health)"]
["HTQHS2014","DipHE Assistant Practitioner (Level 5)","Health and Science","Assistant practitioner (health)"]
["HTQHS2015","FdSc Coaching and Fitness (Level 5)","Health and Science","Sports coach - high performance coach"]
["HTQHS2016","FdSc Assistant Practitioner (Level 5)","Health and Science","Assistant practitioner (health) "]
["HTQHS2018","CertHE Sports Coach – Community and Sport (Level 4)","Health and Science","Sports coach - community coach"]
["HTQHS2019","FD in Health Play Specialism (Level 5)","Health and Science","Health play specialist "]
["HTQHS2020","FD Assistant Practitioner (Healthcare) (Level 5)","Health and Science","Assistant practitioner (health) "]
["HTQHS2021","CertHE Sports Coaching (Level 4)","Health and Science","Sports coach - community coach "]
["HTQHS2022","CertHE Mammographer Associate (Level 4)","Health and Science","Mammography associate "]
["HTQHS2023","FdSc Nursing Associate (Level 5)","Health and Science","Nursing associate (NMC 2018) "]
["HTQHS2025","FdSc Basketball/Golf/ Cricket / Football / Rugby Coaching and Performance (Level 5)","Health and Science","Sports Coach - high performance coach"]
["HTQHS2026","FD in Physical Education and Sports Coaching (Level 5)","Health and Science","Sports coach - school coach "]
["HTQHS2027","FdSc Hearing Aid Audiology (Level 5)","Health and Science","Hearing aid dispenser "]
["HTQHS2029","FdSc Nursing Associate (Level 5)","Health and Science","Nursing associate (NMC 2018) "]
["HTQHS2030","CertHE Healthcare Science Associate","Health and Science","Healthcare science associate "]
["HTQHS2031","FdSc Assistant Practitioner in Healthcare (Level 5)","Health and Science","Assistant practitioner (health) "]
["HTQHS2032","FdSc Assistant Practitioner (Health and Social Care)","Health and Science","Assistant practitioner (health)"]
["HTQHS2033","FdSc Assistant Practitioner (Mental Health)","Health and Science","Assistant practitioner (health) "]
["HTQHS2034","FdA Mental Health and Wellbeing (Level 5)","Health and Science","Assistant practitioner (health)"]
["HTQHS2035","FdA Health and Social Care (Level 5)","Health and Science","Assistant practitioner (health) "]
["HTQBA3001","CMI Level 5 Diploma in Coaching for Professionals","Business and administration","Coaching professional"]
["HTQBA3002","Pearson BTEC Level 5 Higher National Diploma in Leadership and Management for England","Business and administration","Operations or departmental manager"]
["HTQBA3003","CMI Level 5 Diploma in Operational Management","Business and administration","Operations or departmental manager"]
["HTQBA3004","Foundation Degree in Business","Business and administration","Operations or departmental manager"]
["HTQBA3005","Foundation degree in Business, Enterprise & Management","Business and administration","Operations or departmental manager"]
["HTQBA3006","HE Diploma Operations Management","Business and administration","Operations or departmental manager"]
["HTQBA3007","FDA Business and Management","Business and administration","Operations or departmental manager"]
["HTQBA3008","FdA Business Management","Business and administration","Operations or departmental manager"]
["HTQBA3010","Foundation Degree (Arts) Business and Management Practice","Business and administration","Operations or departmental manager"]
["HTQCZ3021","CertHE Technical Practice in Architectural Technology and Design Management","Construction and the built environment","Construction design and build technician"]
["HTQCZ3022","HNC Construction Quantity Surveying","Construction and the built environment","Construction quantity surveying technician"]
["HTQCZ3023","HNC Construction Management Practice","Construction and the built environment","Construction site supervisor"]
["HTQDZ3045","HNC Data Analyst","Digital","Data analyst"]
["HTQDZ3046","HNC Network Engineer","Digital","Network engineer"]
["HTQDZ3047","HNC Cyber Security Technologist – Cyber Security Engineer","Digital","Cyber security technologist"]
["HTQDZ3048","Pearson BTEC Level 5 Higher National Diploma in Computer Systems Engineering for England","Digital","Network engineer"]
["HTQDZ3049","Pearson BTEC Level 4 Higher National Certificate in Computer Systems Engineering for England","Digital","Network engineer"]
["HTQDZ3050","CertHE Technical Practice in Network Engineering","Digital","Network engineer"]
["HTQDZ3051","CertHE Technical Practice in Software Development","Digital","Software developer"]
["HTQDZ3052","CertHE Technical Practice in Digital Community Management","Digital","Digital community manager"]
["HTQDZ3053","CertHE Technical Practice in Digital Accessibility","Digital","Digital accessibility specialist"]
["HTQDZ3054","Software Developer Certificate of Higher Education Level 4","Digital","Software developer"]
["HTQEC3001","Foundation Degree Children, Young People and their Services","Education and early years","Early years lead practitioner"]
["HTQEC3002","FdEd Early Childhood Studies","education and early years","Early years lead practitioner"]
["HTQEC3003","FdA Early Years Educator","Education and early years","Early years lead practitioner"]
["HTQEC3004","NCFE CACHE Level 5 Diploma for the Early Years Senior Practitioner","education and early years","Early years lead practitioner"]
["HTQEC3005","FdA Early Years","Education and early years","Early years lead practitioner"]
["HTQEC3006","FdA Children and Young People","education and early years","Early years lead practitioner"]
["HTQEC3007","Foundation Degree (FdA) Childhood Studies, Care and Education","Education and early years","Early years lead practitioner"]
["HTQEC3008","Foundation Degree Early Years Care and Education","education and early years","Early years lead practitioner"]
["HTQEC3009","Foundation degree in Early Childhood Studies","Education and early years","Early years lead practitioner"]
["HTQEC3010","Foundation Degree Early Childhood Education and Care","education and early years","Early years lead practitioner"]
["HTQEM3001","HND Advanced Manufacturing Engineering","Engineering and manufacturing","Engineering manufacturing technician"]
["HTQEM3004","Pearson BTEC Level 4 Higher National Certificate in Aeronautical Engineering for England","Engineering and manufacturing","Engineering manufacturing technician"]
["HTQEM3005","Pearson BTEC Level 5 Higher National Diploma in Aeronautical Engineering for England","Engineering and manufacturing","Engineering manufacturing technician"]
["HTQEM3006","Pearson BTEC Level 5 Higher National Diploma in Operations Engineering for England","Engineering and manufacturing","Engineering manufacturing technician"]
["HTQEM3007","Pearson BTEC Level 5 Higher National Diploma in Mechanical Engineering for England","Engineering and manufacturing","Engineering manufacturing technician"]
["HTQEM3008","Pearson BTEC Level 5 Higher National Diploma in Manufacturing Engineering for England","Engineering and manufacturing","Engineering manufacturing technician"]
["HTQEM3009","Pearson BTEC Level 5 Higher National Diploma in Engineering for England","Engineering and manufacturing","Engineering manufacturing technician"]
["HTQEM3010","Pearson BTEC Level 5 Higher National Diploma in Electrical and Electronic Engineering for England","Engineering and manufacturing","Engineering manufacturing technician"]
["HTQEM3011","Pearson BTEC Level 5 Higher National Diploma in Space Technologies for England","Engineering and manufacturing","Space engineering technician"]
["HTQEM3012","Pearson BTEC Level 5 Higher National Diploma in Electronic and Electrical Systems Engineering for England","Engineering and manufacturing","Engineering manufacturing technician"]
["HTQEM3013","Pearson BTEC Level 4 Higher National Certificate in Operations Engineering for England","Engineering and manufacturing","Engineering manufacturing technician"]
["HTQEM3014","Pearson BTEC Level 4 Higher National Certificate in Mechanical Engineering for England - 610/1231/2","Engineering and manufacturing","Engineering manufacturing technician"]
["HTQEM3015","Pearson BTEC Level 4 Higher National Certificate in Manufacturing Engineering for England - 610/1229/4","Engineering and manufacturing","Engineering manufacturing technician"]
["HTQEM3016","Pearson BTEC Level 4 Higher National Certificate in Engineering for England - 610/1224/5","Engineering and manufacturing","Engineering manufacturing technician"]
["HTQEM3017","Pearson BTEC Level 4 Higher National Certificate in Electrical and Electronic Engineering for England","Engineering and manufacturing","Engineering manufacturing technician"]
["HTQEM3018","Pearson BTEC Level 4 Higher National Certificate in Mechatronics for England","Engineering and manufacturing","Engineering manufacturing technician"]
["HTQEM3019","Pearson BTEC Level 4 Higher National Certificate in Manufacturing Operations for England","Engineering and manufacturing","Process leader"]
["HTQEM3020","Pearson BTEC Level 4 Higher National Certificate in Space Technologies for England","Engineering and manufacturing","Space engineering technician"]
["HTQEM3021","Pearson BTEC Level 4 Higher National Certificate in Automation and Control Engineering for England","Engineering and manufacturing","Automation and controls engineering technician"]
["HTQEM3022","Pearson BTEC Level 4 Higher National Certificate in Electrical  Systems Engineering for England","Engineering and manufacturing","Engineering manufacturing technician"]
["HTQEM3023","Pearson BTEC Level 4 Higher National Certificate in Electronic Systems Engineering for England","Engineering and manufacturing","Engineering manufacturing technician"]
["HTQEM3024","CertHE Engineering Manufacturing","Engineering and manufacturing","Engineering manufacturing technician"]
["HTQEM3026","Foundation Degree in Engineering (Advanced Manufacturing)","Engineering and manufacturing","Engineering manufacturing technician"]
["HTQHS3037","Nursing Associate Degree","Health and science","Nursing associate (NMC 2018)"]
["HTQHS3038","FDSc Sports Coaching Science","Health and science","Sports coach - school coach"]
["HTQHS3039","FdSc Healthcare Play Specialist","Health and science","Health play specialist"]
["HTQHS3040","FdSc Health & Social Care (HealthCare Assistant Practitioner- HCAP)","Health and science","Assistant practitioner (health)"]
["HTQHS3041","FdSc Health and Social Care (Nursing Associate)","Health and science","Nursing associate (NMC 2018)"]
["HTQHS3042","FdSc Assistant Practitioner","Health and science","Assistant practitioner (health)"]
["HTQHS3042","FdSc Assistant Practitioner","Health and science","Assistant practitioner (health)"]
["HTQHS3043","FDSc Nurse Associate (NMC2018) ","Health and science","Nursing associate (NMC 2018)"]
["HTQHS3044","FdA Football Coaching and Development","Health and science","Sports coach - community coach"]
["HTQHS3045","FdSc Coaching in the Community [Football]","Health and science","Sports coach - community coach"]
["HTQHS3046","Certificate of Higher Education in Sports Coaching","Health and science","Sports coach - school coach"]
["HTQLF3001","Foundation Degree Arts (FdA) Payroll Management","Legal, finance and accounting","Payroll assistant manager"]
["HTQAE4001","FdSc Wildlife, Ecology and Conservation Management","Agriculture, environmental and animal care","Countryside ranger"]
["HTQAE4002","FdSc Applied Animal Health and Welfare","Agriculture, environmental and animal care","Vet technician (livestock)"]
["HTQAE4003","FdSc Horticulture and Applied Plant Science","Agriculture, environmental and animal care","Horticulture and landscaping technical manager"]
["HTQAE4004","Foundation Degree in Science Arboriculture and Tree Management","Agriculture, environmental and animal care","Arboriculturist"]
["HTQBA4013","BTEC Level 5 Higher National Diploma in Sustainable Business Management for England","Business and administration","Corporate responsibility and sustainability practitioner"]
["HTQBA4014","Diploma of Higher Education in Operations Manager","Business and administration","Operations or departmental manager"]
["HTQBA4015","Certificate of Higher Education in School Business Professional","Business and administration","School business professional"]
["HTQCH4001","Foundation Degree Culinary Arts","Catering and hospitality","Senior culinary chef"]
["HTQCH4002","FdA Hospitality Management","Catering and hospitality","Hospitality manager"]
["HTQCH4003","FdSc Culinary Arts Management","Catering and hospitality","Senior culinary chef"]
["HTQCS4001","Certificate of Higher Education for Health and Social Care","Care services","Lead practitioner in adult care"]
["HTQCS4002","Foundation Degree in Adult Health and Social Care","Care services","Leader in adult care"]
["HTQCS4004","FdA Children, Young People and Families Practitioner and Manager","Care services","Children, young people and families manager"]
["HTQCS4006","FDSc Leader in Adult Care","Care services","Leader in adult care"]
["HTQCS4007","BIIAB Level 5 Diploma in Leadership and Management for Adult Care","Care services","Leader in adult care"]
["HTQCS4010","CertHE Integrated Health, Social Care, and Well-being","Care services","Early intervention practitioner"]
["HTQCZ4024","CertHE Construction Management","Construction and the built environment","Construction site supervisor"]
["HTQCZ4025","CertHE Quantity Surveying","Construction and the built environment","Construction quantity surveying technician"]
["HTQCZ4026","Diploma of Higher Education Construction Site Supervisor","Construction and the built environment","Construction site supervisor"]
["HTQCZ4027","HND Sustainable Construction Management","Construction and the built environment","Construction quantity surveying technician"]
["HTQCZ4028","HND Sustainable Construction Management","Construction and the built environment","Construction site supervisor"]
["HTQCZ4029","HND Sustainable Construction Design","Construction and the built environment","Construction design and build technician"]
["HTQCZ4030","CertHE Construction Design and Build","Construction and the built environment","Construction design and build technician"]
["HTQCZ4031","CertHE Construction Quantity Surveying","Construction and the built environment","Construction quantity surveying technician"]
["HTQCZ4032","Cert HE Construction Site Management","Construction and the built environment","Construction site supervisor"]
["HTQCZ4033","Cert HE Construction Site Supervisor","Construction and the built environment","Construction site supervisor"]
["HTQCZ4034","Cert HE Construction Quantity Surveying Technician","Construction and the built environment","Construction quantity surveying technician"]
["HTQCZ4035","Cert HE Construction Design and Build Technician","Construction and the built environment","Construction design and build technician"]
["HTQCZ4036","Certificate of Higher Education in Construction Design and Build Technician","Construction and the built environment","Construction design and build technician"]
["HTQCZ4037","Certificate of Higher Education in Construction Site Supervisor","Construction and the built environment","Construction site supervisor"]
["HTQCZ4038","Pearson BTEC Level 5 Higher National Diploma in Building Services Engineering for England","Construction and the built environment","Building services engineering senior technician"]
["HTQCZ4039","Pearson BTEC Level 5 Higher National Diploma in Civil Engineering for England","Construction and the built environment","Civil engineering senior technician"]
["HTQCZ4040","Pearson BTEC Level 4 Higher National Certificate in Civil Engineering for England","Construction and the built environment","Civil engineering senior technician"]
["HTQCZ4041","Pearson BTEC Level 4 Higher National Certificate in Building Services Engineering for England","Construction and the built environment","Building services engineering senior technician"]
["HTQCD4001","Foundation Degree in Audiovisual Technology","Creative and design","Audiovisual technician"]
["HTQCD4002","FdA Live Performance Technical Production","Creative and design","Audiovisual technician"]
["HTQCD4003","FD Film and Screen Media","Creative and design","Post production technical operator"]
["HTQCD4004","FD Animation","Creative and design","Junior animator"]
["HTQDZ4056","HNC Software Development (Computing) ","Digital","Software developer"]
["HTQDZ4057","FdSc Software Developer","Digital","Software developer"]
["HTQDZ4058","FDSc Data Science","Digital","Data analyst"]
["HTQDZ4059","FdSc Cyber Security Engineer","Digital","Cyber security technologist"]
["HTQDZ4060","CertHE Network Engineer","Digital","Network engineer"]
["HTQDZ4061","HNC Computing ","Digital","Software developer"]
["HTQDZ4062","CertHE Cyber Security","Digital","Cyber security technologist"]
["HTQDZ4064","Foundation Degree Software Development","Digital","Software developer"]
["HTQDZ4065","CertHE in Software Engineering","Digital","Software developer"]
["HTQDZ4066","FdSc Digital and Technology Solutions","Digital","Software developer"]
["HTQDZ4067","Diploma of Higher Education in Cyber Security","Digital","Cyber security technologist"]
["HTQEY4011","Foundation Degree in Early Childhood Studies","Education and early years","Early years lead practitioner"]
["HTQEY4012","FdA Early Years Sector Endorsed","Education and early years","Early years lead practitioner"]
["HTQEY4013","Foundation Degree in Early Childhood Studies","Education and early years","Early years lead practitioner"]
["HTQEY4014","FdA Early Years (0-8 years) (Professional Practice)","Education and early years","Early years lead practitioner"]
["HTQEY4016","Early Childhood Studies Foundation Degree (FdA)","Education and early years","Early years lead practitioner"]
["HTQEY4017","Higher National Diploma in Early Years Professional Leadership for England","Education and early years","Early years lead practitioner"]
["HTQHS4048","FdSc Mental Health Practice","Health and science","Assistant practitioner (health)"]
["HTQHS4049","FdSc Health Studies","Health and science","Assistant practitioner (health)"]
["HTQHS4051","FdSc Health, Wellbeing and Social Support","Health and science","Assistant practitioner (health)"]
["HTQHS4052","Foundation Degree Assistant Practitioner (Health & Social care) level 5","Health and science","Assistant practitioner (health)"]
["HTQHS4054","FdSc Human Biosciences","Health and science","Technician scientist"]
["HTQHS4055","FdSc Sports Coaching and Fitness","Health and science","Sports coach"]
["HTQHS4056","Foundation Degree in Biomedical & Pharmaceutical Sciences","Health and science","Technician scientist"]
["HTQHS4059","Foundation Degree Nursing Associate","Health and science","Nursing associate (NMC 2018)"]
["HTQHS4060","Foundation Degree in Science Nursing Associate","Health and science","Nursing associate (NMC 2018)"]
["HTQHS4061","FdSc Applied Sports Coaching and Physical Education","Health and science","Sports coach"]
["HTQHS4063","FdSc Healthcare Practice","Health and science","Assistant practitioner (health)"]
["HTQPS4001","FdA Youth Justice Practitioner","Protective services","Youth justice practitioner"]
["HTQPS4002","FdSc Criminology, Policing and Criminal Law","Protective services","Anti-social behaviour and community safety officer"]
["HTQSM4001","Pearson BTEC Level 4 Higher National Certificate in Marketing Management for England","Sales, marketing and procurement","Marketing executive"]
["HTQPS5003 ","Foundation Degree in Arts in Criminology and Criminal Justice","Protective services","Youth Justice Practitioner"]
["HTQPS5004 ","FdA Policing the Community with Criminology","Protective services","Police Community Support Officer"]
["HTQCS5012 ","Foundation Degree (FdSc) Leadership Principles in Health & Social Care","Care services","Lead Practitioner in Adult Care and Leader in Adult Care"]
["HTQEY5018 ","Foundation Degree (FdA) Early Years Leadership","Education and early years","Early Years Lead Practitioner"]
["HTQCS5013","Diploma of Higher Education (DipHE) in Adult Care Leadership and Management level 5","Care services","Lead practitioner in adult care and Leader in adult care "]
["HTQCZ5043","CertHE Civil Engineering Technician","Construction and the built environment","Civil Engineering Senior Technician"]
["HTQCD5006","Pearson BTEC Level 4 Higher National Certificate in Photography for England","Creative and design","Photographer "]
["HTQCD5008","Foundation Degree Film and Media Production","Creative and design","Photographer"]
["HTQDZ5068","FD Computing","Digital","Software Developer and"]
["HTQDZ5069","Diploma of Higher Education (DipHE) Data Science","Digital","Data Analyst "]
["HTQDZ5070","Diploma in Higher Education (DipHE) Business Analytics","Digital","Business Analyst"]
["HTQEM5035","Diploma of Higher Education in Automation and Instrumentation","Engineering and manufacturing","Automation and Controls Engineering Technician "]
["HTQEM5032","FdSc Engineering","Engineering and manufacturing","Engineering Manufacturing Technician"]
["HTQEM5033","FdSc Engineering (Manufacturing)","Engineering and manufacturing","Engineering Manufacturing Technician"]
["HTQEM5034","FdSc Engineering","Engineering and manufacturing","Engineering Manufacturing Technician"]
["HTQHS5065","Foundation Degree Dental Technology","Engineering and manufacturing","Dental Technician"]
["HTQHS5068","Foundation Degree in Applied Science ","Health and science","Technician Scientist "]
["HTQHS5069","Nursing Associate","Health and science","Nursing Associate"]
["HTQHS5066","Foundation Degree Nursing Associate (NMC 2018) ","Health and science","Nursing Associate"]
["HTQSM5002","Digital Marketing and Communication Foundation Degree ","Sales, marketing and procurement","Marketing Executive"]
["HTQSM5003","Cert. HE Housing","Sales, marketing and procurement","Senior Housing and Property Management"]
["HTQCD5007","Certificate of Higher Education (Cert HE) Game Development","Creative and design","Assistant Recording Technician "]
["HTQCS5011","CertHE Health and Social Care","Care services","Early intervention Practitioner "]
["HTQHS5067","DipHE Health Studies ","Health and science","Assistant practitioner (health)"]